fUSD/lending_fUSD_20240803
["ID","MTS","AMOUNT","RATE_DAILY","PERIOD"]
[333953420,1722647476749,-500.0,0.0001726,2]
[333953421,1722647476759,-500.0,0.0001726,2]
[333953422,1722647476769,-500.0,0.0001726,2]
[333953423,1722647476779,-1122.59,0.0001726,2]
[333953424,1722647476788,-820.92,0.0001726,2]
[333953425,1722647476802,-634.46,0.0001726,2]
[333953426,1722647476812,-544.48,0.0001726,2]
[333953427,1722647476822,-1509.51,0.0001726,2]
[333953428,1722647476831,-885.37,0.0001726,2]
[333953429,1722647476842,-500.0,0.0001726,2]
[333953430,1722647476852,-609.69,0.0001726,2]
[333953431,1722647476862,-500.0,0.0001726,2]
[333953432,1722647476872,-500.0,0.0001726,2]
[333953433,1722647476882,-819.25,0.0001726,2]
[333953434,1722647476892,-500.0,0.0001726,2]
[333953435,1722647476902,-500.0,0.0001726,2]
[333953436,1722647476912,-500.0,0.0001726,2]
[333953437,1722647476923,-570.69,0.0001726,2]
[333953438,1722647476932,-500.0,0.0001726,2]
[333953439,1722647476942,-500.0,0.0001726,2]
[333953440,1722647476952,-737.3,0.0001726,2]
[333953441,1722647476961,-1039.99,0.0001726,2]
[333953442,1722647476972,-701.09,0.0001726,2]
[333953443,1722647476982,-500.0,0.0001726,2]
[333953444,1722647476991,-500.0,0.0001726,2]
[333953445,1722647477002,-1182.93,0.0001726,2]
[333953446,1722647477012,-500.0,0.0001726,2]
[333953447,1722647477021,-945.47,0.0001726,2]
[333953448,1722647477031,-500.0,0.0001726,2]
[333953449,1722647477041,-500.0,0.0001726,2]
[333953450,1722647477053,-514.72,0.0001726,2]
[333953451,1722647477062,-500.0,0.0001726,2]
[333953452,1722647477072,-500.0,0.0001726,2]
[333953453,1722647477082,-712.13,0.0001726,2]
[333953454,1722647477092,-500.0,0.0001726,2]
[333953455,1722647477101,-500.0,0.0001726,2]
[333953456,1722647477111,-500.0,0.0001726,2]
[333953457,1722647477120,-836.93,0.0001726,2]
[333953458,1722647477129,-500.0,0.0001726,2]
[333953459,1722647477139,-408.78602818,0.0001726,2]
[333953460,1722647477148,-500.0,0.0001726,2]
[333953461,1722647477158,-620.11149868,0.0001726,2]
[333953462,1722647477169,-500.0,0.0001726,2]
[333953463,1722647477184,-500.0,0.0001726,2]
[333953464,1722647477193,-801.21,0.0001726,2]
[333953465,1722647477203,-500.0,0.0001726,2]
[333953466,1722647477213,-500.0,0.0001726,2]
[333953467,1722647477225,-500.0,0.0001726,2]
[333953468,1722647477234,-768.46,0.0001726,2]
[333953469,1722647477244,-609.67,0.0001726,2]
[333953470,1722647477254,-500.0,0.0001726,2]
[333953471,1722647477264,-1378.54,0.0001726,2]
[333953472,1722647477274,-500.0,0.0001726,2]
[333953473,1722647477283,-500.0,0.0001726,2]
[333953474,1722647477293,-500.0,0.0001726,2]
[333953475,1722647477308,-1565.33,0.0001726,2]
[333953476,1722647477318,-500.0,0.0001726,2]
[333953477,1722647477328,-779.99,0.0001726,2]
[333953478,1722647477339,-514.71,0.0001726,2]
[333953479,1722647477349,-500.0,0.0001726,2]
[333953480,1722647477358,-500.0,0.0001726,2]
[333953481,1722647477368,-500.0,0.0001726,2]
[333953482,1722647477378,-500.0,0.0001726,2]
[333953483,1722647477389,-500.0,0.0001726,2]
[333953484,1722647477399,-500.0,0.0001726,2]
[333953485,1722647477408,-500.0,0.0001726,2]
[333953486,1722647477418,-500.0,0.0001726,2]
[333953487,1722647477428,-559.34087853,0.0001726,2]
[333953488,1722647477437,-1051.99,0.0001726,2]
[333953489,1722647477447,-624.37,0.0001726,2]
[333953490,1722647477457,-1544.74,0.0001726,2]
[333953491,1722647477467,-229.85571255,0.0001726,2]
[333953492,1722647477477,-1198.76,0.0001726,2]
[333953493,1722647477486,-531.94,0.0001726,2]
[333953494,1722647477496,-627.46,0.0001726,2]
[333953495,1722647477505,-554.57,0.0001726,2]
[333953496,1722647477515,-550.76,0.0001726,2]
[333953497,1722647477524,-765.73,0.0001726,2]
[333953498,1722647477533,-500.0,0.0001726,2]
[333953499,1722647477543,-500.0,0.0001726,2]
[333953500,1722647477558,-381.73316097,0.0001726,2]
[333953501,1722647477568,-500.0,0.0001726,2]
[333953502,1722647477578,-500.0,0.0001726,2]
[333953503,1722647477588,-780.25,0.0001726,2]
[333953504,1722647477597,-1002.58,0.0001726,2]
[333953505,1722647477607,-566.42,0.0001726,2]
[333953506,1722647477616,-834.52,0.0001726,2]
[333953507,1722647477625,-500.0,0.0001726,2]
[333953508,1722647477637,-500.0,0.0001726,2]
[333953509,1722647477646,-500.0,0.0001726,2]
[333953510,1722647477657,-1771.58,0.0001726,2]
[333953511,1722647477668,-500.0,0.0001726,2]
[333953512,1722647477678,-500.0,0.0001726,2]
[333953513,1722647477688,-1283.32,0.0001726,2]
[333953514,1722647477699,-500.0,0.0001726,2]
[333953515,1722647477708,-970.33,0.0001726,2]
[333953516,1722647477718,-1495.26,0.0001726,2]
[333953517,1722647477728,-500.0,0.0001726,2]
[333953518,1722647477738,-730.04,0.0001726,2]
[333953519,1722647477748,-796.44,0.0001726,2]
[333953520,1722647477758,-500.0,0.0001726,2]
[333953521,1722647477768,-980.45,0.0001726,2]
[333953522,1722647477778,-718.77,0.0001726,2]
[333953523,1722647477788,-249.78716647,0.0001726,2]
[333953524,1722647477804,-500.0,0.0001726,2]
[333953525,1722647477813,-500.0,0.0001726,2]
[333953526,1722647477824,-849.84,0.0001726,2]
[333953527,1722647477835,-1607.27,0.0001726,2]
[333953528,1722647477846,-803.99,0.0001726,2]
[333953529,1722647477856,-536.24,0.0001726,2]
[333953530,1722647477866,-1384.17,0.0001726,2]
[333953531,1722647477876,-500.0,0.0001726,2]
[333953532,1722647477886,-1438.68,0.0001726,2]
[333953533,1722647477896,-500.0,0.0001726,2]
[333953534,1722647477906,-500.0,0.0001726,2]
[333953535,1722647477916,-1360.28,0.0001726,2]
[333953536,1722647477927,-549.83473077,0.0001726,2]
[333953537,1722647477937,-626.83,0.0001726,2]
[333953538,1722647477947,-183.7526072,0.0001726,2]
[333953539,1722647477957,-500.0,0.0001726,2]
[333953540,1722647477967,-500.0,0.0001726,2]
[333953541,1722647477977,-1882.71,0.0001726,2]
[333953542,1722647477987,-1965.3,0.0001726,2]
[333953543,1722647477997,-418.4849648,0.0001726,2]
[333953544,1722647478007,-500.0,0.0001726,2]
[333953545,1722647478017,-500.0,0.0001726,2]
[333953546,1722647478027,-1833.2,0.0001726,2]
[333953547,1722647478037,-534.98,0.0001726,2]
[333953548,1722647478052,-698.61,0.0001726,2]
[333953549,1722647478063,-500.0,0.0001726,2]
[333953550,1722647478073,-677.65,0.0001726,2]
[333953551,1722647478084,-745.35,0.0001726,2]
[333953552,1722647478093,-516.84,0.0001726,2]
[333953553,1722647478103,-983.96,0.0001726,2]
[333953554,1722647478114,-2041.37,0.0001726,2]
[333953555,1722647478124,-500.0,0.0001726,2]
[333953556,1722647478134,-817.11,0.0001726,2]
[333953557,1722647478145,-949.1,0.0001726,2]
[333953558,1722647478155,-908.73,0.0001726,2]
[333953559,1722647478165,-994.34,0.0001726,2]
[333953560,1722647478175,-617.77,0.0001726,2]
[333953561,1722647478185,-500.0,0.0001726,2]
[333953562,1722647478195,-1160.98,0.0001726,2]
[333953563,1722647478204,-788.77,0.0001726,2]
[333953564,1722647478214,-1027.56,0.0001726,2]
[333953565,1722647478223,-500.0,0.0001726,2]
[333953566,1722647478233,-500.0,0.0001726,2]
[333953567,1722647478243,-500.0,0.0001726,2]
[333953568,1722647478252,-938.54,0.0001726,2]
[333953569,1722647478262,-646.62,0.0001726,2]
[333953570,1722647478272,-631.37,0.0001726,2]
[333953571,1722647478281,-500.0,0.0001726,2]
[333953572,1722647478291,-1040.22,0.0001726,2]
[333953573,1722647478305,-500.0,0.0001726,2]
[333953574,1722647478315,-500.0,0.0001726,2]
[333953575,1722647478324,-879.59,0.0001726,2]
[333953576,1722647478333,-500.0,0.0001726,2]
[333953577,1722647478343,-500.0,0.0001726,2]
[333953578,1722647478353,-2033.69,0.0001726,2]
[333953579,1722647478363,-679.31,0.0001726,2]
[333953580,1722647478373,-704.43,0.0001726,2]
[333953581,1722647478384,-1561.0,0.0001726,2]
[333953582,1722647478394,-607.95,0.0001726,2]
[333953583,1722647478404,-1145.16,0.0001726,2]
[333953584,1722647478413,-500.0,0.0001726,2]
[333953585,1722647478423,-500.0,0.0001726,2]
[333953586,1722647478433,-500.0,0.0001726,2]
[333953587,1722647478443,-2342.19,0.0001726,2]
[333953588,1722647478454,-1000.0,0.0001726,2]
[333953589,1722647478464,-500.0,0.0001726,2]
[333953590,1722647478473,-500.0,0.0001726,2]
[333953591,1722647478483,-1439.6,0.0001726,2]
[333953592,1722647478492,-500.0,0.0001726,2]
[333953593,1722647478502,-2274.33,0.0001726,2]
[333953594,1722647478511,-374.33801894,0.0001726,2]
[333953595,1722647478521,-500.0,0.0001726,2]
[333953596,1722647478530,-500.0,0.0001726,2]
[333953597,1722647478539,-932.05,0.0001726,2]
[333953598,1722647478555,-3059.5,0.0001726,2]
[333953599,1722647478567,-1748.51,0.0001726,2]
[333953600,1722647478577,-500.0,0.0001726,2]
[333953601,1722647478586,-1290.75,0.0001726,2]
[333953602,1722647478595,-500.0,0.0001726,2]
[333953603,1722647478605,-2385.67,0.0001726,2]
[333953604,1722647478614,-669.28,0.0001726,2]
[333953605,1722647478623,-726.17,0.0001726,2]
[333953606,1722647478633,-500.0,0.0001726,2]
[333953607,1722647478648,-500.0,0.0001726,2]
[333953608,1722647478658,-500.0,0.0001726,2]
[333953609,1722647478667,-961.26,0.0001726,2]
[333953610,1722647478677,-832.38,0.0001726,2]
[333953611,1722647478687,-500.0,0.0001726,2]
[333953612,1722647478697,-500.0,0.0001726,2]
[333953613,1722647478706,-1433.76,0.0001726,2]
[333953614,1722647478715,-400.0,0.0001726,2]
[333953615,1722647478725,-2028.45,0.0001726,2]
[333953616,1722647478735,-168.0,0.0001726,2]
[333953617,1722647478745,-168.0,0.0001726,2]
[333953618,1722647478754,-168.0,0.0001726,2]
[333953619,1722647478763,-500.0,0.0001726,2]
[333953620,1722647478773,-500.0,0.0001726,2]
[333953621,1722647478782,-500.0,0.0001726,2]
[333953622,1722647478792,-1763.81,0.0001726,2]
[333953623,1722647478809,-795.67,0.0001726,2]
[333953624,1722647478819,-168.0,0.0001726,2]
[333953625,1722647478829,-168.0,0.0001726,2]
[333953626,1722647478839,-500.0,0.0001726,2]
[333953627,1722647478849,-168.0,0.0001726,2]
[333953628,1722647478858,-683.41,0.0001726,2]
[333953629,1722647478868,-906.15,0.0001726,2]
[333953630,1722647478879,-606.24,0.0001726,2]
[333953631,1722647478889,-500.0,0.0001726,2]
[333953632,1722647478899,-515.81,0.0001726,2]
[333953633,1722647478909,-500.0,0.0001726,2]
[333953634,1722647478919,-705.07,0.0001726,2]
[333953635,1722647478929,-912.83,0.0001726,2]
[333953636,1722647478939,-500.0,0.0001726,2]
[333953637,1722647478949,-500.0,0.0001726,2]
[333953638,1722647478959,-810.2,0.0001726,2]
[333953639,1722647478969,-771.19,0.0001726,2]
[333953640,1722647478979,-493.35060179,0.0001726,2]
[333953641,1722647478989,-832.95,0.0001726,2]
[333953642,1722647478999,-1288.69,0.0001726,2]
[333953643,1722647479008,-1366.9,0.0001726,2]
[333953644,1722647479018,-598.77,0.0001726,2]
[333953645,1722647479028,-500.0,0.0001726,2]
[333953646,1722647479039,-774.56,0.0001726,2]
[333953647,1722647479054,-500.0,0.0001726,2]
[333953648,1722647479064,-1935.6,0.0001726,2]
[333953649,1722647479075,-1172.01,0.0001726,2]
[333953650,1722647479085,-565.25,0.0001726,2]
[333953651,1722647479095,-918.19,0.0001726,2]
[333953652,1722647479104,-1189.31,0.0001726,2]
[333953653,1722647479114,-1005.63,0.0001726,2]
[333953654,1722647479124,-630.25413646,0.0001726,2]
[333953655,1722647479134,-503.77,0.0001726,2]
[333953656,1722647479144,-663.27,0.0001726,2]
[333953657,1722647479155,-1454.73,0.0001726,2]
[333953658,1722647479165,-500.0,0.0001726,2]
[333953659,1722647479175,-500.0,0.0001726,2]
[333953660,1722647479185,-500.0,0.0001726,2]
[333953661,1722647479195,-2087.28,0.0001726,2]
[333953662,1722647479205,-684.9,0.0001726,2]
[333953663,1722647479215,-500.0,0.0001726,2]
[333953664,1722647479225,-500.0,0.0001726,2]
[333953665,1722647479234,-2607.21,0.0001726,2]
[333953666,1722647479245,-500.0,0.0001726,2]
[333953667,1722647479256,-500.0,0.0001726,2]
[333953668,1722647479266,-828.17,0.0001726,2]
[333953669,1722647479275,-650.1,0.0001726,2]
[333953670,1722647479285,-500.0,0.0001726,2]
[333953671,1722647479295,-565.68,0.0001726,2]
[333953672,1722647479314,-500.0,0.0001726,2]
[333953673,1722647479324,-500.0,0.0001726,2]
[333953674,1722647479334,-1183.47,0.0001726,2]
[333953675,1722647479343,-500.0,0.0001726,2]
[333953676,1722647479353,-1407.44,0.0001726,2]
[333953677,1722647479363,-500.0,0.0001726,2]
[333953678,1722647479373,-1400.8,0.0001726,2]
[333953679,1722647479383,-926.58,0.0001726,2]
[333953680,1722647479394,-1741.85,0.0001726,2]
[333953681,1722647479404,-2958.24,0.0001726,2]
[333953682,1722647479413,-549.11,0.0001726,2]
[333953683,1722647479425,-500.0,0.0001726,2]
[333953684,1722647479434,-500.0,0.0001726,2]
[333953685,1722647479446,-500.0,0.0001726,2]
[333953686,1722647479456,-644.6,0.0001726,2]
[333953687,1722647479466,-500.0,0.0001726,2]
[333953688,1722647479476,-1761.32,0.0001726,2]
[333953689,1722647479487,-555.77,0.0001726,2]
[333953690,1722647479497,-182.83896344,0.0001726,2]
[333953691,1722647479508,-500.0,0.0001726,2]
[333953692,1722647479518,-1864.63,0.0001726,2]
[333953693,1722647479529,-1030.19,0.0001726,2]
[333953694,1722647479538,-623.03,0.0001726,2]
[333953695,1722647479553,-653.27,0.0001726,2]
[333953696,1722647479563,-500.0,0.0001726,2]
[333953697,1722647479573,-1401.49,0.0001726,2]
[333953698,1722647479583,-856.56,0.0001726,2]
[333953699,1722647479593,-773.66,0.0001726,2]
[333953700,1722647479603,-1713.19,0.0001726,2]
[333953701,1722647479613,-500.0,0.0001726,2]
[333953702,1722647479623,-500.0,0.0001726,2]
[333953703,1722647479633,-500.0,0.0001726,2]
[333953704,1722647479644,-500.0,0.0001726,2]
[333953705,1722647479654,-567.02,0.0001726,2]
[333953706,1722647479665,-500.0,0.0001726,2]
[333953707,1722647479676,-500.0,0.0001726,2]
[333953708,1722647479685,-500.0,0.0001726,2]
[333953709,1722647479695,-500.0,0.0001726,2]
[333953710,1722647479705,-586.63,0.0001726,2]
[333953711,1722647479715,-1147.14,0.0001726,2]
[333953712,1722647479725,-1597.42,0.0001726,2]
[333953713,1722647479737,-652.57,0.0001726,2]
[333953714,1722647479747,-1477.59,0.0001726,2]
[333953715,1722647479758,-500.0,0.0001726,2]
[333953716,1722647479768,-1700.69,0.0001726,2]
[333953717,1722647479779,-2624.25,0.0001726,2]
[333953718,1722647479789,-1857.95,0.0001726,2]
[333953719,1722647479802,-500.0,0.0001726,2]
[333953720,1722647479813,-500.0,0.0001726,2]
[333953721,1722647479822,-513.07,0.0001726,2]
[333953722,1722647479832,-594.95,0.0001726,2]
[333953723,1722647479842,-500.0,0.0001726,2]
[333953724,1722647479852,-1663.75,0.0001726,2]
[333953725,1722647479862,-563.05,0.0001726,2]
[333953726,1722647479872,-500.0,0.0001726,2]
[333953727,1722647479882,-2002.44,0.0001726,2]
[333953728,1722647479893,-1015.96,0.0001726,2]
[333953729,1722647479903,-581.11,0.0001726,2]
[333953730,1722647479912,-500.0,0.0001726,2]
[333953731,1722647479922,-500.0,0.0001726,2]
[333953732,1722647479932,-500.0,0.0001726,2]
[333953733,1722647479941,-920.01,0.0001726,2]
[333953734,1722647479952,-1492.16,0.0001726,2]
[333953735,1722647479962,-825.38,0.0001726,2]
[333953736,1722647479972,-561.01,0.0001726,2]
[333953737,1722647479983,-500.0,0.0001726,2]
[333953738,1722647479992,-681.28,0.0001726,2]
[333953739,1722647480002,-500.0,0.0001726,2]
[333953740,1722647480012,-500.0,0.0001726,2]
[333953741,1722647480021,-3022.48,0.0001726,2]
[333953742,1722647480032,-576.03,0.0001726,2]
[333953743,1722647480042,-500.0,0.0001726,2]
[333953744,1722647480055,-665.88,0.0001726,2]
[333953745,1722647480065,-1046.0,0.0001726,2]
[333953746,1722647480075,-840.81,0.0001726,2]
[333953747,1722647480085,-500.0,0.0001726,2]
[333953748,1722647480095,-602.34,0.0001726,2]
[333953749,1722647480106,-500.0,0.0001726,2]
[333953750,1722647480116,-1306.29,0.0001726,2]
[333953751,1722647480126,-1716.71,0.0001726,2]
[333953752,1722647480136,-813.31,0.0001726,2]
[333953753,1722647480146,-1552.94,0.0001726,2]
[333953754,1722647480156,-1068.19,0.0001726,2]
[333953755,1722647480167,-1371.86,0.0001726,2]
[333953756,1722647480177,-500.0,0.0001726,2]
[333953757,1722647480187,-2141.51,0.0001726,2]
[333953758,1722647480197,-867.29,0.0001726,2]
[333953759,1722647480206,-500.0,0.0001726,2]
[333953760,1722647480216,-500.0,0.0001726,2]
[333953761,1722647480226,-1437.46,0.0001726,2]
[333953762,1722647480236,-1093.12,0.0001726,2]
[333953763,1722647480246,-586.48,0.0001726,2]
[333953764,1722647480255,-500.0,0.0001726,2]
[333953765,1722647480266,-500.0,0.0001726,2]
[333953766,1722647480275,-500.0,0.0001726,2]
[333953767,1722647480285,-500.0,0.0001726,2]
[333953768,1722647480295,-1714.2,0.0001726,2]
[333953769,1722647480311,-947.26,0.0001726,2]
[333953770,1722647480321,-629.43,0.0001726,2]
[333953771,1722647480331,-500.0,0.0001726,2]
[333953772,1722647480341,-727.49,0.0001726,2]
[333953773,1722647480351,-500.0,0.0001726,2]
[333953774,1722647480361,-1562.22,0.0001726,2]
[333953775,1722647480371,-500.0,0.0001726,2]
[333953776,1722647480381,-500.0,0.0001726,2]
[333953777,1722647480391,-500.0,0.0001726,2]
[333953778,1722647480400,-958.98,0.0001726,2]
[333953779,1722647480410,-655.79,0.0001726,2]
[333953780,1722647480421,-1253.89,0.0001726,2]
[333953781,1722647480430,-2180.77,0.0001726,2]
[333953782,1722647480441,-640.36,0.0001726,2]
[333953783,1722647480450,-1115.77,0.0001726,2]
[333953784,1722647480460,-1553.05,0.0001726,2]
[333953785,1722647480470,-505.21,0.0001726,2]
[333953786,1722647480479,-500.0,0.0001726,2]
[333953787,1722647480489,-2059.23,0.0001726,2]
[333953788,1722647480499,-500.0,0.0001726,2]
[333953789,1722647480508,-1072.65,0.0001726,2]
[333953790,1722647480518,-1534.24,0.0001726,2]
[333953791,1722647480527,-2075.3,0.0001726,2]
[333953792,1722647480537,-508.12,0.0001726,2]
[333953793,1722647480546,-1798.94,0.0001726,2]
[333953794,1722647480560,-500.0,0.0001726,2]
[333953795,1722647480570,-709.58,0.0001726,2]
[333953796,1722647480580,-500.0,0.0001726,2]
[333953797,1722647480590,-1469.89,0.0001726,2]
[333953798,1722647480599,-500.0,0.0001726,2]
[333953799,1722647480609,-1078.49,0.0001726,2]
[333953800,1722647480619,-500.0,0.0001726,2]
[333953801,1722647480628,-500.0,0.0001726,2]
[333953802,1722647480642,-2066.04,0.0001726,2]
[333953803,1722647480652,-627.03,0.0001726,2]
[333953804,1722647480662,-1639.27,0.0001726,2]
[333953805,1722647480671,-1123.82,0.0001726,2]
[333953806,1722647480817,-500.0,0.0001726,2]
[333953807,1722647480830,-500.0,0.0001726,2]
[333953808,1722647480840,-1484.4,0.0001726,2]
[333953809,1722647480850,-558.83,0.0001726,2]
[333953810,1722647480860,-500.0,0.0001726,2]
[333953811,1722647480870,-500.0,0.0001726,2]
[333953812,1722647480880,-693.84,0.0001726,2]
[333953813,1722647480890,-500.0,0.0001726,2]
[333953814,1722647480899,-591.8,0.0001726,2]
[333953815,1722647480909,-500.9,0.0001726,2]
[333953816,1722647480920,-500.0,0.0001726,2]
[333953817,1722647480930,-689.17,0.0001726,2]
[333953818,1722647480940,-913.67,0.0001726,2]
[333953819,1722647480949,-1977.53,0.0001726,2]
[333953820,1722647480959,-500.0,0.0001726,2]
[333953821,1722647480969,-857.6,0.0001726,2]
[333953822,1722647480980,-696.45,0.0001726,2]
[333953823,1722647480990,-919.6,0.0001726,2]
[333953824,1722647481000,-500.0,0.0001726,2]
[333953825,1722647481010,-3040.78,0.0001726,2]
[333953826,1722647481020,-500.0,0.0001726,2]
[333953827,1722647481030,-701.09,0.0001726,2]
[333953828,1722647481040,-675.52,0.0001726,2]
[333953829,1722647481053,-1918.88,0.0001726,2]
[333953830,1722647481066,-987.48,0.0001726,2]
[333953831,1722647481077,-502.71,0.0001726,2]
[333953832,1722647481087,-500.0,0.0001726,2]
[333953833,1722647481096,-500.0,0.0001726,2]
[333953834,1722647481106,-236.138539,0.0001726,2]
[333953835,1722647481116,-1155.84,0.0001726,2]
[333953836,1722647481126,-236.138539,0.0001726,2]
[333953837,1722647481136,-236.138539,0.0001726,2]
[333953838,1722647481146,-1534.03,0.0001726,2]
[333953839,1722647481155,-500.0,0.0001726,2]
[333953840,1722647481165,-236.138539,0.0001726,2]
[333953841,1722647481176,-236.138539,0.0001726,2]
[333953842,1722647481185,-236.138539,0.0001726,2]
[333953843,1722647481196,-1587.45,0.0001726,2]
[333953844,1722647481206,-1125.86,0.0001726,2]
[333953845,1722647481215,-610.06,0.0001726,2]
[333953846,1722647481225,-2209.02,0.0001726,2]
[333953847,1722647481235,-925.28,0.0001726,2]
[333953848,1722647481245,-500.0,0.0001726,2]
[333953849,1722647481254,-614.4,0.0001726,2]
[333953850,1722647481264,-500.0,0.0001726,2]
[333953851,1722647481274,-542.45,0.0001726,2]
[333953852,1722647481284,-500.0,0.0001726,2]
[333953853,1722647481294,-1314.49,0.0001726,2]
[333953854,1722647481309,-500.0,0.0001726,2]
[333953855,1722647481318,-1396.12,0.0001726,2]
[333953856,1722647481328,-2047.15,0.0001726,2]
[333953857,1722647481338,-500.0,0.0001726,2]
[333953858,1722647481347,-928.42,0.0001726,2]
[333953859,1722647481357,-517.1,0.0001726,2]
[333953860,1722647481366,-692.78,0.0001726,2]
[333953861,1722647481376,-829.09,0.0001726,2]
[333953862,1722647481386,-500.0,0.0001726,2]
[333953863,1722647481396,-500.0,0.0001726,2]
[333953864,1722647481405,-528.7,0.0001726,2]
[333953865,1722647481415,-886.88,0.0001726,2]
[333953866,1722647481425,-643.87,0.0001726,2]
[333953867,1722647481435,-500.0,0.0001726,2]
[333953868,1722647481445,-500.0,0.0001726,2]
[333953869,1722647481455,-527.3,0.0001726,2]
[333953870,1722647481464,-1081.12,0.0001726,2]
[333953871,1722647481474,-1340.52,0.0001726,2]
[333953872,1722647481483,-2809.72,0.0001726,2]
[333953873,1722647481493,-616.35,0.0001726,2]
[333953874,1722647481503,-500.0,0.0001726,2]
[333953875,1722647481512,-500.0,0.0001726,2]
[333953876,1722647481522,-500.0,0.0001726,2]
[333953877,1722647481532,-1117.08,0.0001726,2]
[333953878,1722647481542,-500.0,0.0001726,2]
[333953879,1722647481555,-831.2,0.0001726,2]
[333953880,1722647481565,-694.28,0.0001726,2]
[333953881,1722647481575,-2040.07,0.0001726,2]
[333953882,1722647481585,-500.0,0.0001726,2]
[333953883,1722647481595,-696.12,0.0001726,2]
[333953884,1722647481604,-500.0,0.0001726,2]
[333953885,1722647481614,-500.0,0.0001726,2]
[333953886,1722647481624,-500.0,0.0001726,2]
[333953887,1722647481634,-647.36,0.0001726,2]
[333953888,1722647481644,-979.51,0.0001726,2]
[333953889,1722647481653,-617.0,0.0001726,2]
[333953890,1722647481667,-1236.76,0.0001726,2]
[333953891,1722647481676,-500.0,0.0001726,2]
[333953892,1722647481686,-500.0,0.0001726,2]
[333953893,1722647481696,-500.0,0.0001726,2]
[333953894,1722647481706,-547.13,0.0001726,2]
[333953895,1722647481716,-975.08,0.0001726,2]
[333953896,1722647481726,-744.04,0.0001726,2]
[333953897,1722647481736,-3174.03,0.0001726,2]
[333953898,1722647481747,-200.0,0.0001726,2]
[333953899,1722647481756,-514.43,0.0001726,2]
[333953900,1722647481766,-1200.72,0.0001726,2]
[333953901,1722647481776,-1283.12,0.0001726,2]
[333953902,1722647481786,-685.66,0.0001726,2]
[333953903,1722647481796,-1555.42,0.0001726,2]
[333953904,1722647481811,-500.0,0.0001726,2]
[333953905,1722647481820,-500.0,0.0001726,2]
[333953906,1722647481830,-617.53,0.0001726,2]
[333953907,1722647481840,-680.72,0.0001726,2]
[333953908,1722647481850,-500.0,0.0001726,2]
[333953909,1722647481860,-500.0,0.0001726,2]
[333953910,1722647481870,-1259.58,0.0001726,2]
[333953911,1722647481880,-500.0,0.0001726,2]
[333953912,1722647481890,-833.03,0.0001726,2]
[333953913,1722647481899,-579.2,0.0001726,2]
[333953914,1722647481909,-500.0,0.0001726,2]
[333953915,1722647481919,-500.0,0.0001726,2]
[333953916,1722647481928,-1915.2,0.0001726,2]
[333953917,1722647481937,-500.0,0.0001726,2]
[333953918,1722647481947,-5606.39,0.0001726,2]
[333953919,1722647481957,-1715.5,0.0001726,2]